Cogmind - Beta 13 @@@ ROGUE MODE // 2024.04.17 @ 01:34:25 Player: AntinDisguise Result: Destroyed by Y-45 Defender with Beam Rifle Performance ------------- Evolutions (1) 500 Regions Visited (2) 400 Robots Destroyed (33) 165 Value Destroyed (707) 707 Prototype IDs (0) 0 Alien Tech Used (0) 0 Bonus (0) 0 TOTAL SCORE: 1772 Bonus ------- None Cogmind --------- Core Integrity 0/400 Matter 271/300 Energy 100/100 System Corruption 0% Temperature Cool (27) Movement Core (700) Ox13 Location -9/Materials Parts ------- > --- POWER (2) -------- (None) > --- PROPULSION (2) --- (None) > --- UTILITY (3) ------ High-capacity Storage Unit > --- WEAPON (2) ------- Hammer > --- INVENTORY (20) --- Light Treads Peak State ------------ > --- POWER ------------ Ion Engine Ion Engine > --- PROPULSION ------- Light Treads Light Treads > --- UTILITY ---------- Improved Heat Sink High-capacity Storage Unit Medium Armor Plating > --- WEAPON ----------- Autogun Grenade Launcher > --- INVENTORY -------- Light Treads Light Treads Light Treads Light Treads Heavy EM Pulse Gun [Rating: 13] Favorites ----------- Power Ion Engine Engine Ion Engine Propulsion Light Treads Treads Light Treads Wheel Wheel Utility High-capacity Storage Unit Device Improved Heat Sink Storage High-capacity Storage Unit Protection Light Armor Plating Weapon Assault Rifle Energy Gun Heavy EM Pulse Gun Energy Cannon Light EM Pulse Cannon Ballistic Gun Assault Rifle Launcher Grenade Launcher Impact Weapon Hammer Build | -11 -10 -9 ------- Run | Yrd Mat Mat Slots Evolved 2 | . . 2 Power 1 | . . 1 Propulsion . | . . . Utility 1 | . . 1 Weapon . | . . . Parts Attached 28 | 6 8 14 Power 2 | 1 . 1 Engine 2 | 1 . 1 Core . | . . . Reactor . | . . . Propulsion 8 | 2 3 3 Treads 6 | . 3 3 Leg . | . . . Wheel 2 | 2 . . Hover . | . . . Flight . | . . . Utility 5 | 1 2 2 Device 1 | . . 1 Storage 2 | 1 1 . Processor . | . . . Hackware . | . . . Protection 2 | . 1 1 Artifact . | . . . Weapon 13 | 2 3 8 Energy Gun 3 | . . 3 Energy Cannon 2 | . . 2 Ballistic Gun 5 | 2 2 1 Ballistic Cannon . | . . . Launcher 2 | . 1 1 Special Weapon . | . . . Impact Weapon 1 | . . 1 Slashing Weapon . | . . . Piercing Weapon . | . . . Special Melee Weapon . | . . . Unidentified Prototypes . | . . . Parts Lost 13 | . . 13 Power 2 | . . 2 Propulsion 5 | . . 5 Utility 3 | . . 3 Weapon 3 | . . 3 Highest Loss Streak 10 | . . 10 To Critical Strikes . | . . . Average Slot Usage (%) 88 | . 98 77 Engine 12 | . 14 10 Treads 22 | . 23 20 Wheel 2 | . 4 . Device 1 | . . 2 Storage 12 | . 14 11 Protection 12 | . 13 12 Energy Gun 2 | . . 4 Energy Cannon 1 | . . 3 Ballistic Gun 17 | . 24 9 Launcher 2 | . 2 1 Naked Turns . | . . . Heaviest Build 64 | 14 53 64 Greatest Support 40 | 26 40 40 Greatest Overweight (x) 13 | . 2 13 Average Overweight (x) . | . . 1 Largest Inventory Capacity 20 | 8 20 20 Average Capacity 18 | 7 18 20 Most Carried 9 | 5 9 9 Average Carried 5 | 2 5 5 Final Capacity 20 | 8 20 20 Final Carried 7 | 2 7 1 Class Distribution -------------------- 100% | Mutant Dominant Class ---------------- Mutant | -10/Materials Mutant | -9/Materials Resources | -11 -10 -9 ----------- Run | Yrd Mat Mat Matter Collected 656 | 191 258 207 Remotely . | . . . Salvage Created 1067 | . 234 833 Parts 75 | . 19 56 Haulers Intercepted . | . . . Recyclers Shooed . | . . . Parts Field Recycled . | . . . Retrieved Matter . | . . . Parts Self-Destructed . | . . . Prevented . | . . . Kills | -11 -10 -9 ------- Run | Yrd Mat Mat Combat Hostiles Destroyed 18 | . 7 11 Melee 2 | . . 2 Guns 13 | . 7 6 AOE 2 | . . 2 Classes Destroyed 9 | . 2 7 Worker 6 | . . 6 Builder 4 | . . 4 Tunneler 1 | . . 1 Recycler 3 | . . 3 Watcher 1 | . . 1 Swarmer 3 | . 3 . Grunt 12 | . 4 8 Duelist 2 | . . 2 Sentry 1 | . . 1 Best Kill Streak 9 | . 2 9 Combat Bots Only 4 | . 2 4 Max Kills in Single Turn 4 | . 1 4 Gunslinging . | . . . Exploded 1 | . . 1 Melee 1 | . . 1 Uniques/NPCs Destroyed . | . . . Combat | -11 -10 -9 -------- Run | Yrd Mat Mat Hostile Shots Fired 196 | . 40 156 Missed 52 | . 8 44 Damage Taken 2026 | . 368 1658 Core 447 | . 36 411 Absorbed by Shields . | . . . Core Remaining (%) 92 | 100 85 . Volleys Fired 50 | 1 20 29 Largest 2 | 2 2 2 Hottest 112 | 40 40 112 Shots Fired 91 | 2 36 53 Gun 77 | 2 32 43 Cannon 7 | . . 7 Launcher 7 | . 4 3 Special . | . . . Kinetic 59 | 2 32 25 Thermal . | . . . Explosive 7 | . 4 3 Electromagnetic 25 | . . 25 Robot Hit Streak 8 | 1 7 8 Robot Miss Streak 5 | 1 2 5 Penetration Max . | . . . Secondary Targets 1 | . . 1 Max Gunslinging Chain 1 | . . 1 Shots Hit Robots 57 | 1 20 36 Core Hits 47 | . 12 35 Critical Kills 1 | . . 1 Critical Parts Destroyed . | . . . Critical Strikes 2 | . . 2 Corrupt 1 | . . 1 Smash 1 | . . 1 Melee Attacks 6 | . . 6 Impact 6 | . . 6 Slashing . | . . . Piercing . | . . . Sneak Attacks . | . . . Combat Hostiles . | . . . Follow-up Attacks . | . . . Damage Inflicted 1412 | 12 262 1138 Guns 705 | 12 262 431 Cannons 105 | . . 105 Explosions 460 | . . 460 Melee 142 | . . 142 Ramming . | . . . Kinetic 542 | 12 262 268 Thermal 213 | . . 213 Explosive 247 | . . 247 Electromagnetic 268 | . . 268 Impact 142 | . . 142 Slashing . | . . . Piercing . | . . . Highest Corruption . | . . . Average Corruption . | . . . Corruption Purged . | . . . Corruption Blocked . | . . . Overload Shots . | . . . Overflow Damage 47 | . . 47 Projectiles . | . . . Explosions 47 | . . 47 Melee . | . . . Knockbacks . | . . . Impact . | . . . Kinetic . | . . . Secondary . | . . . Self-Inflicted Damage 207 | . 26 181 Shots 6 | . 2 4 Rammed . | . . . Targets Rammed . | . . . Kicked . | . . . Crushed . | . . . Highest Temperature 102 | . 7 102 Average Temperature 33 | . 3 39 Received Heat Transfer 765 | . 144 621 Siege Activations . | . . . Robots Corrupted . | . . . Combat Hostiles . | . . . Parts Fried 5 | . . 5 Impact Corruptions 1 | . . 1 Robots Melted . | . . . Combat Hostiles . | . . . Parts Melted . | . . . Heat Transferred 300 | . . 300 Parts Sabotaged . | . . . Parts Stolen . | . . . Parts Stripped . | . . . Power Chain Reactions 1 | . . 1 Alert | -11 -10 -9 ------- Run | Yrd Mat Mat Peak Influence 208 | . 203 208 Initial 42 | . . 42 Average 58 | . 52 71 Maximum Alert Level 1 | . 1 1 Low Security (%) 98 | 100 99 96 Level 1 1 | . . 3 Level 2 . | . . . Level 3 . | . . . Level 4 . | . . . Level 5 . | . . . High Security . | . . . Max Security . | . . . Squads Dispatched 1 | . 1 . Investigation . | . . . Extermination . | . . . Reinforcement 1 | . 1 . Assault . | . . . Garrison . | . . . Intercept . | . . . Searches Triggered . | . . . Construction Impeded . | . . . Haulers Reinforced . | . . . Active Scanning Responses . | . . . Cargo Convoy Interrupts . | . . . Stealth | -11 -10 -9 --------- Run | Yrd Mat Mat Distress Signals 2 | . 1 1 Communications Jammed . | . . . Distress Signals . | . . . Times Spotted 27 | . 11 16 Peak Tracking Total 8 | . 3 8 Tactical Retreats . | . . . Traps | -11 -10 -9 ------- Run | Yrd Mat Mat Traps Triggered 1 | . 1 . Indirectly . | . . . Trap Hack Attempts . | . . . Triggered . | . . . Disarmed . | . . . Reprogrammed . | . . . Reused . | . . . Traps Extracted . | . . . Installed . | . . . Triggered . | . . . Machines | -11 -10 -9 ---------- Run | Yrd Mat Mat Machines Disabled 6 | . 5 1 Max in Single Turn 4 | . 4 1 Machines Repaired . | . . . Machines Dismantled . | . . . Machines Sabotaged . | . . . Overloaded Fab Kills . | . . . Hacking | -11 -10 -9 --------- Run | Yrd Mat Mat Machines Accessed 5 | . 2 3 Terminals 5 | . 2 3 Fabricators . | . . . Repair Stations . | . . . Recycling Units . | . . . Scanalyzers . | . . . Garrison Access . | . . . Total Hacks 7 | . 3 4 Successful 5 | . 2 3 Failed 2 | . 1 1 Catastrophic . | . . . Database Lockouts . | . . . Manual . | . . . Terminals 7 | . 3 4 Fabricators . | . . . Repair Stations . | . . . Recycling Units . | . . . Scanalyzers . | . . . Garrison Access . | . . . Terminal Hacks 5 | . 2 3 Branch Access Points 1 | . 1 . Transport Status 1 | . . 1 Registered Components 1 | . . 1 Zone Layout 2 | . 1 1 Fabricator Hacks . | . . . Repair Station Hacks . | . . . Recycling Unit Hacks . | . . . Scanalyzer . | . . . Garrison Access Hacks . | . . . Unauthorized Hacks . | . . . Terminals . | . . . Fabricators . | . . . Repair Stations . | . . . Recycling Units . | . . . Scanalyzers . | . . . Garrison Access . | . . . Data Cores Recovered . | . . . Used . | . . . Hacking Detections 3 | . 1 2 Full Trace Events . | . . . Feedback Events . | . . . Feedback Blocked . | . . . Robot Schematics Acquired . | . . . Robots Built . | . . . Authchips . | . . . Time . | . . . Total Robot Build Rating . | . . . Part Schematics Acquired . | . . . Parts Built . | . . . Authchips . | . . . Time . | . . . Total Part Build Rating . | . . . Parts Repaired . | . . . Time . | . . . Parts Recycled . | . . . Recycled Matter . | . . . Retrieved Matter . | . . . Retrieved Components . | . . . Parts Scanalyzed . | . . . Part Schematics Acquired . | . . . Parts Damaged . | . . . Bothacking | -11 -10 -9 ------------ Run | Yrd Mat Mat Used RIF Installer . | . . . Robots Hacked . | . . . Non-combat . | . . . Combat . | . . . Robot Hacks Applied . | . . . Relay Couplers Released . | . . . Fabnet Peak Effective % . | . . . Robots Rewired . | . . . Allies Hacked . | . . . Hacks Repelled . | . . . Allies | -11 -10 -9 -------- Run | Yrd Mat Mat Total Allies . | . . . Largest Group . | . . . Highest-Rated Group . | . . . Highest-Rated Ally . | . . . Total Orders . | . . . Ally Attacks . | . . . Total Damage . | . . . Kills . | . . . Allies Corrupted . | . . . Allies Melted . | . . . Intel | -11 -10 -9 ------- Run | Yrd Mat Mat Robot Analysis Total . | . . . Derelict Logs Recovered . | . . . Drone Launches . | . . . Drone Recoveries . | . . . Exploration | -11 -10 -9 ------------- Run | Yrd Mat Mat Turns Passed 1177 | 53 576 548 Spaces Moved 481 | 45 263 173 Core 10 | 9 . 1 Treads 346 | . 174 172 Legs . | . . . Wheels 125 | 36 89 . Hover . | . . . Flight . | . . . Fastest Speed 50 | 50 90 240 Average Speed 199 | 82 190 245 Slowest Speed 700 | 90 320 700 Overloaded Moves . | . . . Propulsion Burnouts . | . . . Robots Hopped . | . . . Cave-ins Triggered . | . . . Exploration Rate (%) 21 | 3 34 26 Regions Visited 2 Branch Regions . Pre-discovered Areas . | . . . Known Exits Taken . | . . . Unknown Exits Taken 2 | 1 1 . Scrap Searched . | . . . Spaces Dug 30 | . 30 . Terrain Destroyed 118 | . 58 60 Melee . | . . . Projectile . | . . . AOE 118 | . 58 60 Terrain Rammed . | . . . Walls Destroyed . | . . . Machines Disabled . | . . . Actions | -11 -10 -9 --------- Run | Yrd Mat Mat Total 607 | 59 304 244 Wait 8 | . . 8 Move 479 | 44 262 173 Hop . | . . . Pick Up 27 | 8 11 8 Fast Attach . | . . . Attach 24 | 6 5 13 Detach . | . . . Swap 4 | . 3 1 Drop 9 | . 3 6 Fire 50 | 1 20 29 Melee 6 | . . 6 Ram . | . . . Kick . | . . . Crush . | . . . Escape Stasis . | . . . Rewire . | . . . Trap . | . . . Miscellaneous . | . . . Route ------- -11/Scrapyard -10/Materials (discovered 3 exits: *Mat / *Min x2) -9/Materials (discovered 1 exit: [*Min]) History --------- Turn | Location | Event 9 | -11/Scrapyard | Discovered new exit (range 16) 54 | -11/Scrapyard | Entered Materials 80 | -10/Materials | Discovered new exit (range 16) 122 | -10/Materials | Identified exit to Mines 304 | -10/Materials | Build established: Mutant 583 | -10/Materials | Discovered new exit (range 15) 630 | -10/Materials | Entered another Materials area 630 | -9/Materials | Evolved 2 slots: Power x1, Utility x1 1041 | -9/Materials | Discovered new exit (range 16) 1118 | -9/Materials | Core integrity fell below 50% 1169 | -9/Materials | Core integrity fell below 20% 1171 | -9/Materials | Lost 10 parts (2p3n2u3w) 1178 | -9/Materials | Destroyed by Y-45 Defender with Beam Rifle Last Messages --------------- Imp. Heat Sink destroyed. K-01 Serf collects debris. U-05 Engineer lays Concrete. Destroyed Heat Sink. G-34 Mercenary system corrupted by crushing effect. G-34 Mercenary system terminally corrupted. Aluminum Leg fried. Ion Engine fried. Sml. Laser fried. G-34 Mercenary destroyed. K-01 Serf collects debris. Acquired 38 matter. Lgt. Treads destroyed. K-01 Serf collects debris. Lgt. Treads destroyed. G-34 Mercenary suffers critical hit (Smash). G-34 Mercenary destroyed. K-01 Serf collects debris. Critical hit (Burn: +37). [Achievement: Back For More] Map ----- +----------------------------------------------------+ | ?????????????????????????????????????????????????? | | ???=?????????????????????????????????????????????? | | ?????????????????????????????????????????????????? | | ?????????????????????????????????????????????????? | | ?????????????????????????????????????????????????? | | ?????????????????????????????????????????????????? | | ?????????????????????????????????????????????????? | | ??????????????????????? ????????????????????????? | | ??????????????????????? ????????????????????????? | | ???????? ???????????? ????????????????????????? | | ???????? ??????#???# ""??????????????????????? | | < ????? ??????? ??# """ ????????????????????? | | ????? ???????? ### """?????????????????????? | | ????# ????????? ?????????????????????? | | ????# = ????????? ?????????????????????? | | #???# ?!???????? #?????????????????????? | | % #??## ?????????? #?????????????????????? | | #########?????????? #?????????????????????? | | [#"##""""###???????? #?????????????????????? | | =%+ " #????????? #?????????????????????? | | #= " #????????? #?????????????????????? | | #[ " #?????????# #?????????????????????? | | %+== " #?????????# #?????????????????????? | | *#= =% %" #?????????# ! #?????????????????????? | | #% " #????????##*%=##????????????????????? | | ######"#""##########!k@Y ###+#????????????????? | | % #"""" [!! ==Y ???????????? | | % %*% #??????????? | | =! aa r #??????????? | | ########## ####### +??????????? | | ##### #????????#######???????? #??????????? | | *!* ##########???????????????????????????????????? | | / #??????????????????????????????????????? | | |= #??????????????????????????????????????? | | """ #??????????????????????????????????????? | | """ #??????????????????????????????????????? | | %! # """ ???????????????????????????????????????? | | * # ???????????????????????????????????????? | | #######???????????????????????????????????????? | | #?????????????????????????????????????????????? | | ######???????????????????????????????????????????? | | #???????????????????????????????????????????? | | #???????????????????????????????????!???????? | | "" #???????????????????????????????????????????? | | """ #???????????????????????????????????????????? | | """ #???????????????????????????????????????????? | | """ #???????????????????????????????????????????? | | "" ]#???????????????????????????????????????????? | | #???????????????????????????????????????????? | | ######???????????????????????????????????????????? | +----------------------------------------------------+ Best States ------------- Heat Dissipation 42 Energy Generation 15 Energy Capacity 400 Matter Stores 300 Matter Capacity 300 Sight Range 16 Terrain Scan Density 10 Armor Coverage 375 Evasion (%) 50 Recoil Reduction 2 Item Schematics ----------------- None Robot Schematics ------------------ None Fabricated ------------ Nothing Alien Tech Used ----------------- None Achievements -------------- Back For More Challenges ------------ None Game ------ Seed ThiefHardcellTerminator Manual? 0 Play Time 00:11:52 Cumulative 20.6 hours Start 2024.04.17 @ 01:26:24 End 2024.04.17 @ 01:34:25 Sessions 1 Manual Loads 0 Difficulty Rogue Special Mode None Game No. 50 Rogue 48 Adventurer 2 Explorer 0 Win Type - Total 0 Types 0/0/0/0/0/0/0/0/0 Lore% 20 Gallery% 27 Achievement% 20 Wizard Run 0 Options --------- Layout 1 ASCII 0 Keyboard 0 Movement Mouse Keybinds 0 Fullscreen 1 Font 16/SmallcapsGlow Map View 27x19 Zoom Use 81% Tactical HUD 0 Map Filters NONE Filters NONE Steam 1 RUN: 3d15119c-e4f7-4131-981c-91eba741b735